[Event "FIDE Open World Rapid 2024"]
[Site "New York"]
[Date "2024.12.28"]
[Round "9.33"]
[White "Gretarsson, Helgi Ass"]
[Black "Bilych, Oleksii"]
[Result "1/2-1/2"]
[ECO "A13"]
[WhiteElo "2418"]
[BlackElo "2435"]
[Annotator "ChessBase"]
[PlyCount "298"]
[EventDate "2024.12.14"]
[EventType "swiss"]
[EventCountry "USA"]
[SourceTitle "playchess.com"]
[Source "ChessBase"]
[SourceQuality "1"]
[TimeControl "900+10"]

1. Nf3 {[%emt 0:00:02]} d5 {[%emt 0:00:01]} 2. e3 {[%emt 0:00:01]} Nf6 {[%emt 0:00:01]} 3. c4 {[%emt 0:00:01]} e6 {[%emt 0:00:01]} 4. b3 {[%emt 0:00:01]} Bd6 {[%emt 0:00:01]} 5. Bb2 {[%emt 0:00:07]} O-O {[%emt 0:00:03]} 6. Nc3 {[%emt 0:00:26]} Re8 {[%emt 0:00:01]} 7. Rc1 {[%emt 0:00:47]} c5 {[%emt 0:01:27]} 8. cxd5 {[%emt 0:00:19]} exd5 {[%emt 0:00:14]} 9. Nb5 {[%emt 0:01:12]} d4 {[%emt 0:00:29]} 10. Nxd6 {[%emt 0:05:09]} Qxd6 {[%emt 0:00:02]} 11. Ba3 {[%emt 0:00:01]} dxe3 {[%emt 0:00:09]} 12. dxe3 {[%emt 0:00:02]} Qxd1+ {[%emt 0:00:07]} 13. Rxd1 {[%emt 0:00:02]} b6 {[%emt 0:00:01]} 14. Bb2 {[%emt 0:00:56]} Bb7 {[%emt 0:01:38]} 15. Bxf6 {[%emt 0:00:05]} gxf6 {[%emt 0:00:01]} 16. Rd6 {[%emt 0:00:01]} Nc6 {[%emt 0:00:54]} 17. Rxf6 {[%emt 0:00:42]} Kg7 {[%emt 0:00:02]} 18. Rf4 {[%emt 0:01:10]} Nb4 {[%emt 0:00:18]} 19. Bc4 {[%emt 0:00:14]} Re7 {[%emt 0:00:11]} 20. a4 {[%emt 0:00:04]} a6 {[%emt 0:00:28]} 21. O-O {[%emt 0:01:50]} Rd8 {[%emt 0:00:01]} 22. Nh4 {[%emt 0:00:19]} Red7 {[%emt 0:00:21]} 23. Nf5+ {[%emt 0:00:01]} Kg6 {[%emt 0:00:02]} 24. e4 {[%emt 0:00:53]} h5 {[%emt 0:01:13]} 25. Nh4+ {[%emt 0:02:33]} Kg7 {[%emt 0:00:13]} 26. Nf5+ {[%emt 0:00:02]} Kg6 {[%emt 0:00:01]} 27. Ne3 {[%emt 0:00:37]} Nd3 {[%emt 0:00:13]} 28. Rh4 {[%emt 0:00:01]} Rd4 {[%emt 0:00:41]} 29. f3 {[%emt 0:00:03]} Ne5 {[%emt 0:00:10]} 30. Bd5 {[%emt 0:00:36]} Bxd5 {[%emt 0:00:09]} 31. Nxd5 {[%emt 0:00:02]} R8xd5 {[%emt 0:00:04]} 32. g4 {[%emt 0:00:12]} Rd8 {[%emt 0:01:20]} 33. Rxh5 {[%emt 0:00:04]} f6 {[%emt 0:00:06]} 34. Rf5 {[%emt 0:00:05]} Rd2 {[%emt 0:01:17]} 35. g5 {[%emt 0:00:11]} Nd7 {[%emt 0:00:20]} 36. gxf6 {[%emt 0:00:04]} Nxf6 {[%emt 0:00:05]} 37. Kh1 {[%emt 0:00:00]} Rd1 {[%emt 0:00:20]} 38. Rxd1 {[%emt 0:00:06]} Rxd1+ {[%emt 0:00:01]} 39. Kg2 {[%emt 0:00:01]} Rb1 {[%emt 0:00:06]} 40. a5 {[%emt 0:00:02]} Rb2+ {[%emt 0:00:21]} 41. Kg3 {[%emt 0:00:05]} Rxb3 {[%emt 0:00:03]} 42. Kf4 {[%emt 0:00:07]} c4 {[%emt 0:00:30]} 43. axb6 {[%emt 0:00:07]} Rxb6 {[%emt 0:01:49]} 44. Rc5 {[%emt 0:00:03]} a5 {[%emt 0:00:02]} 45. Rxc4 {[%emt 0:00:04]} Ra6 {[%emt 0:00:01]} 46. Ra4 {[%emt 0:00:21]} Nd7 {[%emt 0:00:05]} 47. Ke3 {[%emt 0:00:05]} Kf6 {[%emt 0:00:05]} 48. Kd4 {[%emt 0:00:06]} Ke6 {[%emt 0:00:30]} 49. Kc4 {[%emt 0:00:15]} Ra8 {[%emt 0:02:36]} 50. Kb5 {[%emt 0:00:07]} Rb8+ {[%emt 0:00:01]} 51. Kxa5 {[%emt 0:00:05]} Nc5 {[%emt 0:00:02]} 52. Rb4 {[%emt 0:00:45]} Ra8+ {[%emt 0:00:22]} 53. Kb5 {[%emt 0:00:04]} Nd3 {[%emt 0:00:11]} 54. Rd4 {[%emt 0:01:32]} Rb8+ {[%emt 0:00:07]} 55. Kc6 {[%emt 0:00:13]} Ne5+ {[%emt 0:00:24]} 56. Kc7 {[%emt 0:00:01]} Rf8 {[%emt 0:00:02]} 57. Rd6+ {[%emt 0:00:09]} Ke7 {[%emt 0:00:01]} 58. Rd5 {[%emt 0:00:01]} Ng6 {[%emt 0:01:00]} 59. Rf5 {[%emt 0:00:43]} Rh8 {[%emt 0:00:09]} 60. Rg5 {[%emt 0:00:32]} Nf4 {[%emt 0:00:08]} 61. Rg4 {[%emt 0:00:06]} Ne6+ {[%emt 0:00:03]} 62. Kc6 {[%emt 0:00:01]} Nd4+ {[%emt 0:00:17]} 63. Kd5 {[%emt 0:00:03]} Nxf3 {[%emt 0:00:04]} 64. e5 {[%emt 0:00:02]} Rd8+ {[%emt 0:00:44]} 65. Ke4 {[%emt 0:00:07]} Nd2+ {[%emt 0:00:01]} 66. Ke3 {[%emt 0:00:01]} Nb3 {[%emt 0:00:05]} 67. Rg6 {[%emt 0:00:10]} Nc5 {[%emt 0:00:05]} 68. Rh6 {[%emt 0:00:40]} Rd3+ {[%emt 0:00:19]} 69. Kf4 {[%emt 0:00:03]} Ne6+ {[%emt 0:00:04]} 70. Ke4 {[%emt 0:00:05]} Rd4+ {[%emt 0:00:02]} 71. Ke3 {[%emt 0:00:01]} Rg4 {[%emt 0:00:12]} 72. Rh7+ {[%emt 0:00:02]} Kf8 {[%emt 0:00:03]} 73. h4 {[%emt 0:00:07]} Ng7 {[%emt 0:00:20]} 74. Kf3 {[%emt 0:00:05]} Rg6 {[%emt 0:00:10]} 75. h5 {[%emt 0:00:04]} Ra6 {[%emt 0:01:09]} 76. h6 {[%emt 0:00:06]} Nf5 {[%emt 0:00:01]} 77. Ke4 {[%emt 0:00:02]} Nxh6 {[%emt 0:00:09]} 78. Rb7 {[%emt 0:00:02]} Nf7 {[%emt 0:00:24]} 79. Kf5 {[%emt 0:00:20]} Ke8 {[%emt 0:00:44]} 80. Rc7 {[%emt 0:00:21]} Nd8 {[%emt 0:00:23]} 81. Rc1 {[%emt 0:00:40]} Nc6 {[%emt 0:00:06]} 82. Rh1 {[%emt 0:00:17]} Ne7+ {[%emt 0:00:01]} 83. Ke4 {[%emt 0:00:04]} Ra4+ {[%emt 0:00:01]} 84. Kd3 {[%emt 0:00:06]} Kf7 {[%emt 0:00:10]} 85. Rh6 {[%emt 0:00:08]} Ng6 {[%emt 0:00:07]} 86. e6+ {[%emt 0:00:22]} Kg7 {[%emt 0:00:03]} 87. Rh1 {[%emt 0:00:06]} Nf4+ {[%emt 0:00:03]} 88. Kc3 {[%emt 0:00:05]} Nxe6 {[%emt 0:00:07]} 89. Rh5 {[%emt 0:00:19]} Kf6 {[%emt 0:00:02]} 90. Rb5 {[%emt 0:00:02]} Rh4 {[%emt 0:00:06]} 91. Kd3 {[%emt 0:00:08]} Nf8 {[%emt 0:00:25]} 92. Rb6+ {[%emt 0:00:08]} Ke5 {[%emt 0:00:03]} 93. Rb5+ {[%emt 0:00:01]} Kd6 {[%emt 0:00:01]} 94. Rf5 {[%emt 0:00:28]} Nd7 {[%emt 0:00:01]} 95. Ke3 {[%emt 0:00:28]} Ne5 {[%emt 0:00:02]} 96. Rf4 {[%emt 0:00:15]} Rh8 {[%emt 0:00:04]} 97. Ke4 {[%emt 0:00:08]} Ke6 {[%emt 0:00:06]} 98. Rf1 {[%emt 0:00:02]} Ra8 {[%emt 0:00:11]} 99. Rd1 {[%emt 0:00:09]} Ra3 {[%emt 0:00:15]} 100. Rb1 {[%emt 0:00:10]} Ra4+ {[%emt 0:00:09]} 101. Ke3 {[%emt 0:00:02]} Rh4 {[%emt 0:00:07]} 102. Rb5 {[%emt 0:00:20]} Ng4+ {[%emt 0:00:20]} 103. Kd3 {[%emt 0:00:20]} Nf6 {[%emt 0:00:02]} 104. Ra5 {[%emt 0:00:17]} Nd5 {[%emt 0:00:04]} 105. Ra1 {[%emt 0:00:02]} Kd6 {[%emt 0:00:02]} 106. Rg1 {[%emt 0:00:06]} Rh3+ {[%emt 0:00:16]} 107. Kd4 {[%emt 0:00:06]} Nf4 {[%emt 0:00:07]} 108. Ra1 {[%emt 0:00:05]} Ne6+ {[%emt 0:00:06]} 109. Kc4 {[%emt 0:00:07]} Rh4+ {[%emt 0:00:04]} 110. Kc3 {[%emt 0:00:03]} Nd4 {[%emt 0:00:08]} 111. Ra5 {[%emt 0:00:11]} Ne6 {[%emt 0:00:10]} 112. Ra1 {[%emt 0:00:15]} Kd5 {[%emt 0:00:03]} 113. Ra8 {[%emt 0:00:35]} Rh3+ {[%emt 0:00:03]} 114. Kd2 {[%emt 0:00:01]} Nf4 {[%emt 0:00:21]} 115. Rd8+ {[%emt 0:00:05]} Ke5 {[%emt 0:00:03]} 116. Re8+ {[%emt 0:00:22]} Kd4 {[%emt 0:00:01]} 117. Rd8+ {[%emt 0:00:01]} Nd5 {[%emt 0:00:01]} 118. Ke2 {[%emt 0:00:01]} Rh7 {[%emt 0:00:04]} 119. Kf3 {[%emt 0:00:07]} Rf7+ {[%emt 0:00:01]} 120. Ke2 {[%emt 0:00:09]} Rf6 {[%emt 0:00:05]} 121. Rd7 {[%emt 0:00:11]} Ke4 {[%emt 0:00:01]} 122. Rd8 {[%emt 0:00:05]} Re6 {[%emt 0:00:24]} 123. Kd2 {[%emt 0:00:09]} Kd4 {[%emt 0:00:03]} 124. Ra8 {[%emt 0:00:10]} Rg6 {[%emt 0:00:08]} 125. Ra4+ {[%emt 0:00:02]} Ke5 {[%emt 0:00:04]} 126. Ra8 {[%emt 0:00:17]} Rg2+ {[%emt 0:00:27]} 127. Kd3 {[%emt 0:00:03]} Rg3+ {[%emt 0:00:01]} 128. Kd2 {[%emt 0:00:02]} Nb6 {[%emt 0:00:02]} 129. Rd8 {[%emt 0:00:05]} Nc4+ {[%emt 0:00:06]} 130. Kc2 {[%emt 0:00:02]} Ne3+ {[%emt 0:00:05]} 131. Kd2 {[%emt 0:00:17]} Nd5 {[%emt 0:00:20]} 132. Ra8 {[%emt 0:00:02]} Rh3 {[%emt 0:00:04]} 133. Ra7 {[%emt 0:00:07]} Rh2+ {[%emt 0:00:31]} 134. Kd3 {[%emt 0:00:06]} Nb4+ {[%emt 0:00:01]} 135. Kc4 {[%emt 0:00:20]} Nc6 {[%emt 0:00:01]} 136. Ra3 {[%emt 0:00:05]} Rc2+ {[%emt 0:00:26]} 137. Rc3 {[%emt 0:00:03]} Re2 {[%emt 0:00:09]} 138. Rh3 {[%emt 0:00:07]} Re4+ {[%emt 0:00:09]} 139. Kc5 {[%emt 0:00:02]} Nd4 {[%emt 0:00:04]} 140. Rh5+ {[%emt 0:00:07]} Nf5 {[%emt 0:00:01]} 141. Rh8 {[%emt 0:00:05]} Ng7 {[%emt 0:00:02]} 142. Kc6 {[%emt 0:00:45]} Rc4+ {[%emt 0:00:04]} 143. Kb5 {[%emt 0:00:02]} Rc1 {[%emt 0:00:02]} 144. Kb4 {[%emt 0:00:28]} Nf5 {[%emt 0:00:20]} 145. Rh5 {[%emt 0:00:20]} Ke4 {[%emt 0:00:02]} 146. Kb5 {[%emt 0:00:06]} Nd4+ {[%emt 0:00:06]} 147. Kb6 {[%emt 0:00:05]} Rf1 {[%emt 0:00:01]} 148. Kc5 {[%emt 0:00:12]} Rf5+ {[%emt 0:00:02]} 149. Rxf5 {[%emt 0:00:02]} Nxf5 {[%emt 0:00:14]} 1/2-1/2

[Event "FIDE Open World Rapid 2024"]
[Site "New York"]
[Date "2024.12.27"]
[Round "9.34"]
[White "Martirosyan, Haik M."]
[Black "Gan-Erdene, Sugar"]
[Result "1-0"]
[ECO "D38"]
[WhiteElo "2656"]
[BlackElo "2437"]
[Annotator "ChessBase"]
[PlyCount "187"]
[EventDate "2024.12.14"]
[EventType "swiss"]
[EventCountry "USA"]
[SourceTitle "playchess.com"]
[Source "ChessBase"]
[SourceQuality "1"]
[TimeControl "900+10"]

1. d4 {[%emt 0:00:03]} Nf6 {[%emt 0:00:02]} 2. c4 {[%emt 0:00:02]} e6 {[%emt 0:00:02]} 3. Nf3 {[%emt 0:00:02]} d5 {[%emt 0:00:01]} 4. Nc3 {[%emt 0:00:02]} Bb4 {[%emt 0:00:04]} 5. Bg5 {[%emt 0:00:10]} h6 {[%emt 0:00:02]} 6. Bxf6 {[%emt 0:00:06]} Qxf6 {[%emt 0:00:02]} 7. e3 {[%emt 0:00:12]} O-O {[%emt 0:00:06]} 8. Rc1 {[%emt 0:00:01]} dxc4 {[%emt 0:00:02]} 9. Bxc4 {[%emt 0:00:01]} c5 {[%emt 0:00:02]} 10. O-O {[%emt 0:00:02]} cxd4 {[%emt 0:00:01]} 11. Ne4 {[%emt 0:00:01]} Qf5 {[%emt 0:00:02]} 12. Ng3 {[%emt 0:00:29]} Qa5 {[%emt 0:00:10]} 13. exd4 {[%emt 0:00:10]} Nc6 {[%emt 0:00:15]} 14. a3 {[%emt 0:00:02]} Be7 {[%emt 0:00:08]} 15. Qd3 {[%emt 0:00:03]} Rd8 {[%emt 0:00:43]} 16. Rfd1 {[%emt 0:00:05]} Bf6 {[%emt 0:01:43]} 17. Qe4 {[%emt 0:01:05]} g6 {[%emt 0:01:02]} 18. h4 {[%emt 0:02:25]} Ne7 {[%emt 0:03:55]} 19. h5 {[%emt 0:01:39]} g5 {[%emt 0:00:12]} 20. Ne5 {[%emt 0:01:09]} Bg7 {[%emt 0:00:19]} 21. f4 {[%emt 0:00:37]} gxf4 {[%emt 0:04:47]} 22. Qxf4 {[%emt 0:00:22]} f6 {[%emt 0:00:02]} 23. Nf3 {[%emt 0:03:06]} Nd5 {[%emt 0:00:52]} 24. Bxd5 {[%emt 0:00:39]} Qxd5 {[%emt 0:00:08]} 25. Ne4 {[%emt 0:00:07]} Rf8 {[%emt 0:01:36]} 26. Rc5 {[%emt 0:00:13]} Qd8 {[%emt 0:00:02]} 27. Qg3 {[%emt 0:00:52]} b6 {[%emt 0:01:34]} 28. Rc7 {[%emt 0:00:14]} Bd7 {[%emt 0:00:01]} 29. Rdc1 {[%emt 0:00:43]} Rc8 {[%emt 0:00:35]} 30. Rxc8 {[%emt 0:00:17]} Bxc8 {[%emt 0:00:01]} 31. Rc7 {[%emt 0:00:04]} Rf7 {[%emt 0:00:38]} 32. Nxf6+ {[%emt 0:00:02]} Qxf6 {[%emt 0:00:13]} 33. Rxc8+ {[%emt 0:00:02]} Rf8 {[%emt 0:00:28]} 34. Rc7 {[%emt 0:01:09]} Rf7 {[%emt 0:00:09]} 35. Rc6 {[%emt 0:00:07]} Qf5 {[%emt 0:00:08]} 36. Ne5 {[%emt 0:00:22]} Rf8 {[%emt 0:00:37]} 37. Rc7 {[%emt 0:00:17]} Qg5 {[%emt 0:00:01]} 38. Qxg5 {[%emt 0:00:27]} hxg5 {[%emt 0:00:01]} 39. Rxa7 {[%emt 0:00:21]} Rd8 {[%emt 0:00:03]} 40. Nc6 {[%emt 0:01:27]} Rd6 {[%emt 0:00:34]} 41. Rc7 {[%emt 0:00:01]} b5 {[%emt 0:00:14]} 42. b4 {[%emt 0:00:25]} Kh7 {[%emt 0:00:11]} 43. Kf2 {[%emt 0:00:34]} Kh6 {[%emt 0:00:01]} 44. Ke3 {[%emt 0:00:27]} Kxh5 {[%emt 0:00:07]} 45. Ne5 {[%emt 0:00:51]} Bxe5 {[%emt 0:00:03]} 46. dxe5 {[%emt 0:00:02]} Ra6 {[%emt 0:00:05]} 47. Rc3 {[%emt 0:00:19]} Kg4 {[%emt 0:00:05]} 48. Kd4 {[%emt 0:00:34]} Ra8 {[%emt 0:00:02]} 49. Rf3 {[%emt 0:00:07]} Rd8+ {[%emt 0:00:10]} 50. Ke4 {[%emt 0:00:03]} Ra8 {[%emt 0:00:02]} 51. Rc3 {[%emt 0:00:14]} Ra6 {[%emt 0:00:04]} 52. Kd4 {[%emt 0:00:28]} Ra8 {[%emt 0:00:10]} 53. Rf3 {[%emt 0:00:07]} Rd8+ {[%emt 0:00:02]} 54. Ke4 {[%emt 0:00:10]} Ra8 {[%emt 0:00:19]} 55. Rh3 {[%emt 0:00:09]} Ra7 {[%emt 0:00:23]} 56. Rd3 {[%emt 0:00:22]} Ra8 {[%emt 0:00:04]} 57. Kd4 {[%emt 0:00:16]} Rd8+ {[%emt 0:00:38]} 58. Kc3 {[%emt 0:00:01]} Rc8+ {[%emt 0:00:01]} 59. Kb3 {[%emt 0:00:03]} Kf5 {[%emt 0:00:05]} 60. Rd7 {[%emt 0:00:14]} Rb8 {[%emt 0:00:02]} 61. Rg7 {[%emt 0:00:06]} Rd8 {[%emt 0:00:06]} 62. Rb7 {[%emt 0:00:27]} Rd3+ {[%emt 0:00:07]} 63. Kb2 {[%emt 0:00:03]} Rd5 {[%emt 0:00:15]} 64. Rc7 {[%emt 0:00:01]} Rxe5 {[%emt 0:00:11]} 65. a4 {[%emt 0:00:26]} bxa4 {[%emt 0:00:05]} 66. Ka3 {[%emt 0:00:04]} Re2 {[%emt 0:00:26]} 67. b5 {[%emt 0:00:02]} Re1 {[%emt 0:00:40]} 68. b6 {[%emt 0:00:04]} Rb1 {[%emt 0:00:03]} 69. b7 {[%emt 0:00:01]} Ke5 {[%emt 0:00:06]} 70. Rd7 {[%emt 0:00:01]} Kf6 {[%emt 0:00:10]} 71. Kxa4 {[%emt 0:00:05]} e5 {[%emt 0:00:01]} 72. Ka5 {[%emt 0:00:09]} Ke6 {[%emt 0:00:07]} 73. Rg7 {[%emt 0:00:02]} e4 {[%emt 0:00:05]} 74. Ka6 {[%emt 0:00:31]} Ra1+ {[%emt 0:00:12]} 75. Kb6 {[%emt 0:00:04]} Rb1+ {[%emt 0:00:01]} 76. Kc7 {[%emt 0:00:02]} Rc1+ {[%emt 0:00:26]} 77. Kd8 {[%emt 0:00:01]} Rb1 {[%emt 0:00:25]} 78. Kc8 {[%emt 0:00:28]} e3 {[%emt 0:00:06]} 79. Rg8 {[%emt 0:00:29]} Rc1+ {[%emt 0:00:12]} 80. Kd8 {[%emt 0:00:17]} Rd1+ {[%emt 0:00:14]} 81. Kc8 {[%emt 0:00:17]} Rc1+ {[%emt 0:00:02]} 82. Kd8 {[%emt 0:00:01]} Rd1+ {[%emt 0:00:01]} 83. Kc8 {[%emt 0:00:21]} Rc1+ {[%emt 0:00:01]} 84. Kd8 {[%emt 0:00:13]} Rd1+ {[%emt 0:00:03]} 85. Kc7 {[%emt 0:00:04]} Rc1+ {[%emt 0:00:05]} 86. Kb8 {[%emt 0:00:15]} Kf5 {[%emt 0:00:38]} 87. Re8 {[%emt 0:00:10]} Kf4 {[%emt 0:00:01]} 88. Ka7 {[%emt 0:00:05]} Ra1+ {[%emt 0:00:07]} 89. Kb6 {[%emt 0:00:01]} Rb1+ {[%emt 0:00:01]} 90. Kc6 {[%emt 0:00:13]} Rc1+ {[%emt 0:00:02]} 91. Kd5 {[%emt 0:00:07]} Rd1+ {[%emt 0:00:18]} 92. Kc4 {[%emt 0:00:08]} Rb1 {[%emt 0:00:45]} 93. b8=Q+ {[%emt 0:00:03]} Rxb8 {[%emt 0:00:01]} 94. Rxb8 {[%emt 0:00:01]} 1-0

[Event "FIDE Open World Rapid 2024"]
[Site "New York"]
[Date "2024.12.28"]
[Round "9.34"]
[White "Degenbaev, Aziz"]
[Black "Horvath, Dominik"]
[Result "1/2-1/2"]
[ECO "C52"]
[WhiteElo "2260"]
[BlackElo "2542"]
[Annotator "ChessBase"]
[PlyCount "131"]
[EventDate "2024.12.14"]
[EventType "swiss"]
[EventCountry "USA"]
[SourceTitle "playchess.com"]
[Source "ChessBase"]
[SourceQuality "1"]
[TimeControl "900+10"]

1. e4 {[%emt 0:00:01]} e5 {[%emt 0:00:07]} 2. Nf3 {[%emt 0:00:06]} Nc6 {[%emt 0:00:01]} 3. Bc4 {[%emt 0:00:01]} Bc5 {[%emt 0:00:04]} 4. b4 {[%emt 0:00:07]} Bxb4 {[%emt 0:00:05]} 5. c3 {[%emt 0:00:01]} Ba5 {[%emt 0:00:00]} 6. d4 {[%emt 0:00:13]} b5 {[%emt 0:00:03]} 7. Bd5 {[%emt 0:01:51]} Nge7 {[%emt 0:00:28]} 8. dxe5 {[%emt 0:01:08]} O-O {[%emt 0:00:04]} 9. O-O {[%emt 0:00:01]} Nxd5 {[%emt 0:06:15]} 10. exd5 {[%emt 0:00:02]} Ne7 {[%emt 0:00:01]} 11. Bg5 {[%emt 0:01:33]} Qe8 {[%emt 0:00:20]} 12. d6 {[%emt 0:00:38]} Ng6 {[%emt 0:00:22]} 13. a4 {[%emt 0:02:50]} h6 {[%emt 0:02:26]} 14. axb5 {[%emt 0:01:37]} Bb6 {[%emt 0:00:01]} 15. Re1 {[%emt 0:01:27]} Bb7 {[%emt 0:00:41]} 16. Nbd2 {[%emt 0:00:31]} Qe6 {[%emt 0:00:26]} 17. Be3 {[%emt 0:00:36]} cxd6 {[%emt 0:00:22]} 18. exd6 {[%emt 0:00:53]} Qxd6 {[%emt 0:01:28]} 19. Nc4 {[%emt 0:00:28]} Qc7 {[%emt 0:00:01]} 20. Nxb6 {[%emt 0:00:52]} axb6 {[%emt 0:00:01]} 21. Qd4 {[%emt 0:00:00]} Bxf3 {[%emt 0:00:37]} 22. gxf3 {[%emt 0:00:01]} Qb7 {[%emt 0:00:51]} 23. Kg2 {[%emt 0:00:10]} Rfe8 {[%emt 0:00:31]} 24. Rxa8 {[%emt 0:00:58]} Qxa8 {[%emt 0:00:23]} 25. Bd2 {[%emt 0:00:28]} Rc8 {[%emt 0:00:01]} 26. Re4 {[%emt 0:00:59]} d5 {[%emt 0:00:58]} 27. Rg4 {[%emt 0:00:30]} Qb7 {[%emt 0:00:10]} 28. Be3 {[%emt 0:00:26]} Rc5 {[%emt 0:01:33]} 29. Qb4 {[%emt 0:00:57]} d4 {[%emt 0:00:00]} 30. Qxd4 {[%emt 0:00:10]} Rxb5 {[%emt 0:00:05]} 31. h4 {[%emt 0:00:14]} Qc6 {[%emt 0:01:02]} 32. c4 {[%emt 0:00:13]} Rf5 {[%emt 0:00:08]} 33. Qe4 {[%emt 0:00:08]} Qd7 {[%emt 0:00:07]} 34. Bxb6 {[%emt 0:00:14]} Rf6 {[%emt 0:00:37]} 35. Be3 {[%emt 0:00:04]} Ra6 {[%emt 0:00:07]} 36. c5 {[%emt 0:00:11]} Re6 {[%emt 0:00:10]} 37. Qd4 {[%emt 0:00:06]} Qc6 {[%emt 0:00:04]} 38. h5 {[%emt 0:00:10]} Ne5 {[%emt 0:00:01]} 39. Re4 {[%emt 0:00:02]} Nxf3 {[%emt 0:00:05]} 40. Rxe6 {[%emt 0:00:31]} fxe6 {[%emt 0:00:14]} 41. Qd8+ {[%emt 0:00:01]} Kf7 {[%emt 0:00:08]} 42. Kg3 {[%emt 0:00:18]} Ne5 {[%emt 0:00:03]} 43. Kf4 {[%emt 0:00:01]} Nd7 {[%emt 0:00:13]} 44. Qa5 {[%emt 0:00:17]} Nf6 {[%emt 0:00:02]} 45. Qa7+ {[%emt 0:00:05]} Kg8 {[%emt 0:00:01]} 46. Qb8+ {[%emt 0:00:04]} Kh7 {[%emt 0:00:01]} 47. Qb1+ {[%emt 0:00:02]} Kg8 {[%emt 0:00:05]} 48. Qb8+ {[%emt 0:00:07]} Kf7 {[%emt 0:00:01]} 49. Qa7+ {[%emt 0:00:02]} Nd7 {[%emt 0:00:02]} 50. Qa5 {[%emt 0:00:18]} Qg2 {[%emt 0:00:18]} 51. f3 {[%emt 0:00:41]} Qg5+ {[%emt 0:00:08]} 52. Ke4 {[%emt 0:00:01]} Qd5+ {[%emt 0:00:01]} 53. Kf4 {[%emt 0:00:03]} Qe5+ {[%emt 0:00:01]} 54. Kg4 {[%emt 0:00:01]} Qxe3 {[%emt 0:00:02]} 55. Qc7 {[%emt 0:00:02]} Qd4+ {[%emt 0:00:05]} 56. Kh3 {[%emt 0:00:02]} Kf6 {[%emt 0:00:43]} 57. Qd8+ {[%emt 0:00:07]} Kf5 {[%emt 0:00:35]} 58. c6 {[%emt 0:00:01]} Qc3 {[%emt 0:00:39]} 59. cxd7 {[%emt 0:00:04]} Qxf3+ {[%emt 0:00:01]} 60. Kh2 {[%emt 0:00:01]} Qe2+ {[%emt 0:00:10]} 61. Kg3 {[%emt 0:00:14]} Qd3+ {[%emt 0:00:04]} 62. Kf2 {[%emt 0:00:08]} Qd2+ {[%emt 0:00:02]} 63. Kf1 {[%emt 0:00:02]} Kg4 {[%emt 0:00:17]} 64. Qe7 {[%emt 0:00:04]} Qd1+ {[%emt 0:00:04]} 65. Kf2 {[%emt 0:00:03]} Qd2+ {[%emt 0:00:01]} 66. Kf1 {[%emt 0:00:00]} 1/2-1/2

[Event "FIDE Open World Rapid 2024"]
[Site "New York"]
[Date "2024.12.27"]
[Round "9.35"]
[White "Akobian, Varuzhan"]
[Black "Manafov, Vugar"]
[Result "1/2-1/2"]
[ECO "E11"]
[WhiteElo "2564"]
[BlackElo "2431"]
[Annotator "ChessBase"]
[PlyCount "71"]
[EventDate "2024.12.14"]
[EventType "swiss"]
[EventCountry "USA"]
[SourceTitle "playchess.com"]
[Source "ChessBase"]
[SourceQuality "1"]
[TimeControl "900+10"]

1. d4 {[%emt 0:00:03]} Nf6 {[%emt 0:00:03]} 2. c4 {[%emt 0:00:01]} e6 {[%emt 0:00:00]} 3. Nf3 {[%emt 0:00:03]} Bb4+ {[%emt 0:00:02]} 4. Bd2 {[%emt 0:00:03]} a5 {[%emt 0:00:02]} 5. a3 {[%emt 0:00:20]} Bxd2+ {[%emt 0:00:11]} 6. Qxd2 {[%emt 0:00:01]} O-O {[%emt 0:00:19]} 7. Nc3 {[%emt 0:00:03]} d6 {[%emt 0:00:05]} 8. e3 {[%emt 0:00:28]} Nc6 {[%emt 0:00:16]} 9. Be2 {[%emt 0:00:22]} e5 {[%emt 0:00:07]} 10. O-O {[%emt 0:00:15]} Bg4 {[%emt 0:00:07]} 11. h3 {[%emt 0:00:53]} Bh5 {[%emt 0:00:05]} 12. Rfd1 {[%emt 0:01:36]} Re8 {[%emt 0:00:30]} 13. dxe5 {[%emt 0:00:46]} Nxe5 {[%emt 0:01:04]} 14. Nxe5 {[%emt 0:00:03]} Rxe5 {[%emt 0:00:30]} 15. Bxh5 {[%emt 0:00:06]} Rxh5 {[%emt 0:00:10]} 16. b4 {[%emt 0:00:16]} Re5 {[%emt 0:01:16]} 17. Qd4 {[%emt 0:01:31]} h6 {[%emt 0:03:27]} 18. Rab1 {[%emt 0:04:14]} axb4 {[%emt 0:00:17]} 19. axb4 {[%emt 0:00:01]} Qe7 {[%emt 0:01:19]} 20. Ra1 {[%emt 0:00:12]} Rc8 {[%emt 0:01:18]} 21. Qd3 {[%emt 0:02:40]} Qe6 {[%emt 0:00:59]} 22. Ra7 {[%emt 0:00:15]} Rb8 {[%emt 0:00:03]} 23. Rda1 {[%emt 0:00:44]} Qe8 {[%emt 0:00:10]} 24. Nd5 {[%emt 0:01:13]} Qd8 {[%emt 0:00:37]} 25. Qd4 {[%emt 0:00:53]} Nd7 {[%emt 0:01:52]} 26. Rd1 {[%emt 0:00:18]} Nf6 {[%emt 0:00:11]} 27. Qh4 {[%emt 0:01:19]} Rg5 {[%emt 0:00:36]} 28. Qf4 {[%emt 0:00:07]} Nxd5 {[%emt 0:01:14]} 29. Rxd5 {[%emt 0:00:25]} Rxd5 {[%emt 0:00:56]} 30. cxd5 {[%emt 0:00:01]} Qc8 {[%emt 0:00:05]} 31. Qg4 {[%emt 0:00:45]} Qxg4 {[%emt 0:01:21]} 32. hxg4 {[%emt 0:00:01]} c6 {[%emt 0:00:07]} 33. dxc6 {[%emt 0:00:26]} bxc6 {[%emt 0:00:00]} 34. Ra6 {[%emt 0:00:03]} Rxb4 {[%emt 0:00:16]} 35. Rxc6 {[%emt 0:00:02]} Rxg4 {[%emt 0:00:02]} 36. Rxd6 {[%emt 0:00:13]} 1/2-1/2

[Event "FIDE Open World Rapid 2024"]
[Site "New York"]
[Date "2024.12.28"]
[Round "9.35"]
[White "Papasimakopoulos, Alexandros"]
[Black "Juksta, Karolis"]
[Result "0-1"]
[ECO "A40"]
[WhiteElo "2379"]
[BlackElo "2403"]
[Annotator "ChessBase"]
[PlyCount "78"]
[EventDate "2024.12.14"]
[EventType "swiss"]
[EventCountry "USA"]
[SourceTitle "playchess.com"]
[Source "ChessBase"]
[SourceQuality "1"]
[TimeControl "900+10"]

1. d4 {[%emt 0:00:02]} e6 {[%emt 0:00:03]} 2. c4 {[%emt 0:00:01]} b6 {[%emt 0:00:24]} 3. e4 {[%emt 0:00:02]} Bb7 {[%emt 0:00:02]} 4. Bd3 {[%emt 0:00:02]} Bb4+ {[%emt 0:00:01]} 5. Kf1 {[%emt 0:00:03]} Be7 {[%emt 0:00:01]} 6. Nc3 {[%emt 0:00:03]} d6 {[%emt 0:00:04]} 7. Nf3 {[%emt 0:00:29]} Nd7 {[%emt 0:00:14]} 8. Be3 {[%emt 0:00:27]} Bf6 {[%emt 0:00:03]} 9. h4 {[%emt 0:00:23]} h6 {[%emt 0:01:06]} 10. Ke2 {[%emt 0:00:20]} g6 {[%emt 0:02:16]} 11. Kd2 {[%emt 0:00:40]} Ne7 {[%emt 0:00:17]} 12. Kc2 {[%emt 0:00:03]} a6 {[%emt 0:00:54]} 13. g4 {[%emt 0:00:21]} Bg7 {[%emt 0:00:06]} 14. Nd2 {[%emt 0:00:45]} Nc6 {[%emt 0:01:47]} 15. Nb3 {[%emt 0:00:32]} Nb4+ {[%emt 0:04:40]} 16. Kb1 {[%emt 0:00:05]} Nxd3 {[%emt 0:00:34]} 17. Qxd3 {[%emt 0:00:02]} c5 {[%emt 0:00:21]} 18. f4 {[%emt 0:00:36]} cxd4 {[%emt 0:00:21]} 19. Bxd4 {[%emt 0:00:03]} e5 {[%emt 0:00:01]} 20. Be3 {[%emt 0:01:38]} exf4 {[%emt 0:00:07]} 21. Bxf4 {[%emt 0:00:03]} Ne5 {[%emt 0:00:04]} 22. Qe2 {[%emt 0:00:10]} Rc8 {[%emt 0:00:39]} 23. Nd2 {[%emt 0:00:01]} O-O {[%emt 0:00:24]} 24. Kc2 {[%emt 0:00:20]} Qc7 {[%emt 0:02:38]} 25. b3 {[%emt 0:00:08]} b5 {[%emt 0:00:01]} 26. Bxe5 {[%emt 0:01:21]} Bxe5 {[%emt 0:00:04]} 27. Rab1 {[%emt 0:01:05]} b4 {[%emt 0:01:50]} 28. Nd5 {[%emt 0:00:47]} Bxd5 {[%emt 0:00:04]} 29. exd5 {[%emt 0:00:02]} Qa5 {[%emt 0:00:01]} 30. Kd3 {[%emt 0:00:04]} Qxd5+ {[%emt 0:00:33]} 31. Kc2 {[%emt 0:00:19]} Qa5 {[%emt 0:00:01]} 32. Kd3 {[%emt 0:00:34]} Rfe8 {[%emt 0:00:20]} 33. Ne4 {[%emt 0:00:10]} d5 {[%emt 0:00:03]} 34. Nd2 {[%emt 0:00:12]} Qxa2 {[%emt 0:00:20]} 35. c5 {[%emt 0:00:54]} Rxc5 {[%emt 0:00:18]} 36. Rhc1 {[%emt 0:00:07]} Rc3+ {[%emt 0:00:12]} 37. Rxc3 {[%emt 0:00:07]} bxc3 {[%emt 0:00:01]} 38. Rd1 {[%emt 0:00:31]} cxd2 {[%emt 0:00:03]} 39. Rxd2 {[%emt 0:00:02]} Qxb3# {[%emt 0:00:00]} 0-1